Cogmind - Beta 13 @@@ ROGUE MODE // 2024.04.14 @ 01:13:17 Player: thrax Result: Self-destructed Performance ------------- Evolutions (1) 500 Regions Visited (2) 400 Robots Destroyed (29) 145 Value Destroyed (604) 604 Prototype IDs (0) 0 Alien Tech Used (0) 0 Bonus (50) 50 TOTAL SCORE: 1699 Bonus ------- High Alert Combat Kills 50 Cogmind --------- Core Integrity 193/400 Matter 13/300 Energy 100/100 System Corruption 0% Temperature Cool (0) Movement Core (50) Location -9/Materials Parts ------- > --- POWER (1) -------- (None) > --- PROPULSION (2) --- (None) > --- UTILITY (4) ------ (None) > --- WEAPON (2) ------- (None) > --- INVENTORY (5) ---- Terrain Scanner Core Shielding Core Shielding Grenade Launcher Grenade Launcher Peak State ------------ > --- POWER ------------ Ion Engine > --- PROPULSION ------- Aluminum Leg Aluminum Leg > --- UTILITY ---------- Medium Storage Unit High-powered Tractor Beam > --- WEAPON ----------- Small Laser Grenade Launcher > --- INVENTORY -------- Ion Engine Light Ion Engine Wheel Heat Sink Small Storage Unit Small Laser Grenade Launcher Grenade Launcher [Rating: 8] Favorites ----------- Power Light Ion Engine Engine Light Ion Engine Propulsion Aluminum Leg Leg Aluminum Leg Utility Medium Storage Unit Device High-powered Tractor Beam Storage Medium Storage Unit Protection Core Shielding Weapon Grenade Launcher Energy Gun Small Laser Ballistic Gun Assault Rifle Launcher Grenade Launcher Build | -11 -10 -9 ------- Run | Yrd Mat Mat Slots Evolved 2 | . . 2 Power . | . . . Propulsion . | . . . Utility 2 | . . 2 Weapon . | . . . Parts Attached 26 | 6 19 1 Power 5 | 1 4 . Engine 5 | 1 4 . Core . | . . . Reactor . | . . . Propulsion 4 | 2 2 . Treads . | . . . Leg 4 | 2 2 . Wheel . | . . . Hover . | . . . Flight . | . . . Utility 5 | 1 4 . Device 2 | . 2 . Storage 2 | 1 1 . Processor . | . . . Hackware . | . . . Protection 1 | . 1 . Artifact . | . . . Weapon 12 | 2 9 1 Energy Gun 5 | 1 4 . Energy Cannon . | . . . Ballistic Gun 1 | 1 . . Ballistic Cannon . | . . . Launcher 6 | . 5 1 Special Weapon . | . . . Impact Weapon . | . . . Slashing Weapon . | . . . Piercing Weapon . | . . . Special Melee Weapon . | . . . Unidentified Prototypes . | . . . Parts Lost 7 | . 3 4 Power 2 | . 1 1 Propulsion 3 | . 1 2 Utility . | . . . Weapon 2 | . 1 1 Highest Loss Streak 4 | . 2 4 To Critical Strikes . | . . . Average Slot Usage (%) 84 | . 87 34 Engine 12 | . 12 7 Leg 26 | . 27 13 Device 6 | . 6 . Storage 13 | . 14 7 Energy Gun 7 | . 8 . Ballistic Gun 2 | . 3 . Launcher 13 | . 13 5 Naked Turns 23 | . . 23 Heaviest Build 23 | 11 23 18 Greatest Support 20 | 20 20 20 Greatest Overweight (x) 4 | 2 1 4 Average Overweight (x) . | . . . Largest Inventory Capacity 10 | 8 10 10 Average Capacity 9 | 7 9 8 Most Carried 10 | 3 10 8 Average Carried 7 | 1 7 7 Final Capacity 10 | 8 10 5 Final Carried 8 | 3 8 5 Class Distribution -------------------- 100% | Mutant Dominant Class ---------------- Mutant | -10/Materials Mutant | -9/Materials Resources | -11 -10 -9 ----------- Run | Yrd Mat Mat Matter Collected 512 | 231 281 . Remotely 92 | . 92 . Salvage Created 379 | . 379 . Parts 45 | . 45 . Haulers Intercepted . | . . . Recyclers Shooed 1 | . 1 . Parts Field Recycled . | . . . Retrieved Matter . | . . . Parts Self-Destructed . | . . . Prevented . | . . . Kills | -11 -10 -9 ------- Run | Yrd Mat Mat Combat Hostiles Destroyed 19 | . 19 . Guns 1 | . 1 . AOE 18 | . 18 . Classes Destroyed 7 | . 7 . Worker 3 | . 3 . Builder 2 | . 2 . Tunneler 1 | . 1 . Operator 1 | . 1 . Watcher 3 | . 3 . Swarmer 9 | . 9 . Grunt 10 | . 10 . Best Kill Streak 10 | . 10 . Combat Bots Only 5 | . 5 . Max Kills in Single Turn 3 | . 3 . Gunslinging . | . . . Exploded 3 | . 3 . Melee . | . . . Uniques/NPCs Destroyed . | . . . Combat | -11 -10 -9 -------- Run | Yrd Mat Mat Hostile Shots Fired 102 | . 54 48 Missed 30 | . 14 16 Damage Taken 1360 | . 957 403 Core 411 | . 204 207 Absorbed by Shields . | . . . Regen/Repaired (Parts) 80 | . 80 . Core Remaining (%) 59 | 100 18 . Volleys Fired 36 | . 36 . Largest 2 | . 2 . Hottest 80 | . 80 . Shots Fired 46 | . 46 . Gun 12 | . 12 . Cannon . | . . . Launcher 34 | . 34 . Special . | . . . Kinetic . | . . . Thermal 12 | . 12 . Explosive 34 | . 34 . Electromagnetic . | . . . Robot Hit Streak 3 | . 3 . Robot Miss Streak 4 | . 4 . Penetration Max . | . . . Secondary Targets . | . . . Shots Hit Robots 17 | . 17 . Core Hits 42 | . 42 . Critical Kills . | . . . Critical Parts Destroyed . | . . . Critical Strikes . | . . . Melee Attacks . | . . . Impact . | . . . Slashing . | . . . Piercing . | . . . Sneak Attacks . | . . . Combat Hostiles . | . . . Follow-up Attacks . | . . . Damage Inflicted 1746 | . 1744 2 Guns 75 | . 75 . Cannons . | . . . Explosions 1669 | . 1669 . Melee . | . . . Ramming 2 | . . 2 Kinetic . | . . . Thermal 75 | . 75 . Explosive 1669 | . 1669 . Electromagnetic . | . . . Impact . | . . . Slashing . | . . . Piercing . | . . . Highest Corruption 6 | . 6 . Average Corruption 4 | . 4 . Corruption Purged . | . . . Corruption Blocked . | . . . Effects 24 | . 24 . Message Errors 7 | . 7 . Matter Fused 6 | . 6 . Heat Flow Errors 2 | . 2 . Energy Discharges 3 | . 3 . Parts Fused 1 | . 1 . Data Loss (minor) 3 | . 3 . Data Loss (major) 2 | . 2 . Overload Shots . | . . . Overflow Damage 86 | . 86 . Projectiles . | . . . Explosions 86 | . 86 . Melee . | . . . Knockbacks . | . . . Impact . | . . . Kinetic . | . . . Secondary . | . . . Self-Inflicted Damage 309 | . 309 . Shots 9 | . 9 . Rammed . | . . . Targets Rammed 1 | . . 1 Kicked 1 | . . 1 Crushed . | . . . Highest Temperature 246 | . 246 . Average Temperature 72 | . 72 . Received Heat Transfer 375 | . 180 195 Siege Activations . | . . . Robots Corrupted . | . . . Combat Hostiles . | . . . Parts Fried . | . . . Impact Corruptions . | . . . Robots Melted . | . . . Combat Hostiles . | . . . Parts Melted . | . . . Heat Transferred 222 | . 222 . Parts Sabotaged . | . . . Parts Stolen . | . . . Parts Stripped . | . . . Power Chain Reactions . | . . . Alert | -11 -10 -9 ------- Run | Yrd Mat Mat Peak Influence 609 | . 609 202 Initial 180 | . . 180 Average 343 | . 368 184 Maximum Alert Level 2 | . 2 1 Low Security (%) 22 | 100 16 68 Level 1 14 | . 14 31 Level 2 62 | . 69 . Level 3 . | . . . Level 4 . | . . . Level 5 . | . . . High Security . | . . . Max Security . | . . . Squads Dispatched 5 | . 5 . Investigation 4 | . 4 . Extermination . | . . . Reinforcement 1 | . 1 . Assault . | . . . Garrison . | . . . Intercept . | . . . Searches Triggered . | . . . Construction Impeded . | . . . Haulers Reinforced . | . . . Active Scanning Responses . | . . . Cargo Convoy Interrupts . | . . . Stealth | -11 -10 -9 --------- Run | Yrd Mat Mat Distress Signals . | . . . Communications Jammed . | . . . Distress Signals . | . . . Times Spotted 29 | . 24 5 Peak Tracking Total 6 | . 3 6 Tactical Retreats . | . . . Traps | -11 -10 -9 ------- Run | Yrd Mat Mat Traps Triggered 4 | . 4 . Indirectly . | . . . Trap Hack Attempts . | . . . Triggered . | . . . Disarmed . | . . . Reprogrammed . | . . . Reused . | . . . Traps Extracted . | . . . Installed . | . . . Triggered . | . . . Machines | -11 -10 -9 ---------- Run | Yrd Mat Mat Machines Disabled 9 | . 9 . Max in Single Turn 2 | . 2 . Machines Repaired . | . . . Machines Dismantled . | . . . Machines Sabotaged . | . . . Overloaded Fab Kills . | . . . Hacking | -11 -10 -9 --------- Run | Yrd Mat Mat Machines Accessed 9 | . 8 1 Terminals 7 | . 6 1 Fabricators . | . . . Repair Stations 1 | . 1 . Recycling Units 1 | . 1 . Scanalyzers . | . . . Garrison Access . | . . . Total Hacks 37 | . 33 4 Successful 16 | . 13 3 Failed 21 | . 20 1 Catastrophic 4 | . 4 . Database Lockouts . | . . . Manual . | . . . Terminals 26 | . 22 4 Fabricators . | . . . Repair Stations 6 | . 6 . Recycling Units 5 | . 5 . Scanalyzers . | . . . Garrison Access . | . . . Terminal Hacks 8 | . 5 3 Record 6 | . 4 2 Registered Components 1 | . 1 . Zone Layout 1 | . . 1 Fabricator Hacks . | . . . Repair Station Hacks 4 | . 4 . Scan Component 2 | . 2 . Repair 2 | . 2 . Recycling Unit Hacks 4 | . 4 . Recycle Component 1 | . 1 . Process 1 | . 1 . Report Inventory 1 | . 1 . Retrieve Matter 1 | . 1 . Scanalyzer . | . . . Garrison Access Hacks . | . . . Unauthorized Hacks . | . . . Terminals . | . . . Fabricators . | . . . Repair Stations . | . . . Recycling Units . | . . . Scanalyzers . | . . . Garrison Access . | . . . Data Cores Recovered 1 | . 1 . Used 1 | . 1 . Hacking Detections 8 | . 7 1 Full Trace Events 6 | . 6 . Feedback Events . | . . . Feedback Blocked . | . . . Robot Schematics Acquired . | . . . Robots Built . | . . . Authchips . | . . . Time . | . . . Total Robot Build Rating . | . . . Part Schematics Acquired . | . . . Parts Built . | . . . Authchips . | . . . Time . | . . . Total Part Build Rating . | . . . Parts Repaired 2 | . 2 . Time 52 | . 52 . Parts Recycled 1 | . 1 . Recycled Matter . | . . . Retrieved Matter . | . . . Retrieved Components . | . . . Parts Scanalyzed . | . . . Part Schematics Acquired . | . . . Parts Damaged . | . . . Bothacking | -11 -10 -9 ------------ Run | Yrd Mat Mat Used RIF Installer . | . . . Robots Hacked . | . . . Non-combat . | . . . Combat . | . . . Robot Hacks Applied . | . . . Relay Couplers Released . | . . . Fabnet Peak Effective % . | . . . Robots Rewired . | . . . Allies Hacked . | . . . Hacks Repelled . | . . . Allies | -11 -10 -9 -------- Run | Yrd Mat Mat Total Allies . | . . . Largest Group . | . . . Highest-Rated Group . | . . . Highest-Rated Ally . | . . . Total Orders . | . . . Ally Attacks . | . . . Total Damage . | . . . Kills . | . . . Allies Corrupted . | . . . Allies Melted . | . . . Intel | -11 -10 -9 ------- Run | Yrd Mat Mat Robot Analysis Total . | . . . Derelict Logs Recovered . | . . . Drone Launches . | . . . Drone Recoveries . | . . . Exploration | -11 -10 -9 ------------- Run | Yrd Mat Mat Turns Passed 1691 | 63 1527 101 Spaces Moved 1236 | 45 1111 80 Core 39 | 11 . 28 Treads . | . . . Legs 1197 | 34 1111 52 Wheels . | . . . Hover . | . . . Flight . | . . . Fastest Speed 50 | 50 120 50 Average Speed 119 | 114 120 107 Slowest Speed 250 | 150 190 250 Overloaded Moves . | . . . Propulsion Burnouts . | . . . Robots Hopped . | . . . Cave-ins Triggered 1 | . 1 . Exploration Rate (%) 34 | 3 92 8 Regions Visited 2 Branch Regions . Pre-discovered Areas . | . . . Known Exits Taken . | . . . Unknown Exits Taken 2 | 1 1 . Scrap Searched . | . . . Spaces Dug 4 | . 4 . Terrain Destroyed 202 | . 202 . Melee . | . . . Projectile . | . . . AOE 202 | . 202 . Terrain Rammed . | . . . Walls Destroyed . | . . . Machines Disabled . | . . . Actions | -11 -10 -9 --------- Run | Yrd Mat Mat Total 1401 | 53 1253 95 Wait 75 | . 64 11 Move 1234 | 44 1110 80 Hop . | . . . Pick Up 14 | 3 11 . Fast Attach 12 | 6 6 . Attach 3 | . 2 1 Detach 4 | . 3 1 Swap 11 | . 11 . Drop 11 | . 10 1 Fire 36 | . 36 . Melee . | . . . Ram . | . . . Kick 1 | . . 1 Crush . | . . . Escape Stasis . | . . . Rewire . | . . . Trap . | . . . Miscellaneous . | . . . Route ------- -11/Scrapyard -10/Materials (discovered 4 exits: *Mat x3 / [*Min]) -9/Materials History --------- Turn | Location | Event 12 | -11/Scrapyard | Discovered new exit (range 15) 64 | -11/Scrapyard | Entered Materials 254 | -10/Materials | Discovered new exit (range 3) 319 | -10/Materials | Build established: Mutant 477 | -10/Materials | Discovered new exit (range 6) 516 | -10/Materials | Repaired Aluminum Leg 544 | -10/Materials | Repaired Lgt. Ion Engine 768 | -10/Materials | Discovered new exit (range 7) 1050 | -10/Materials | Core integrity fell below 50% 1253 | -10/Materials | Crushed by falling debris 1253 | -10/Materials | Core integrity fell below 20% 1377 | -10/Materials | Discovered new exit (range 16) 1591 | -10/Materials | Entered another Materials area 1591 | -9/Materials | Evolved 2 slots: Utility x2 1692 | -9/Materials | Core integrity fell below 50% 1692 | -9/Materials | Self-destructed Last Messages --------------- >>Query(The Assembled) Given this name by the Derelicts, these robots of integrated construction are created seemingly at random by larger mobile factories. They form sudden groups, often in the most unexpected of places, and attack almost everything. I can discern no pattern in their behavior, though as their hostility is not directed solely towards [Complex 0b10] and my robots it seems that their creator's intent is to instigate something larger while disrupting my own operations. >>Layout(Zone) Retrieving Zone 9T layout... Downloaded map data. 01633_ Kicked Y-45 Defender out of the way. 01646_ Grenade Launcher destroyed. 01651_ Aluminum Leg destroyed. 01665_ Dropped Med. Storage Unit. 01669_ Ion Engine destroyed. 01681_ R-06 Scavenger collects Heat Sink. 01684_ R-06 Scavenger collects Sml. Storage Unit. 01688_ R-06 Scavenger collects Wheel. 01691_ Critical hit (Burn: +37). Map ----- +----------------------------------------------------+ | ?????????????????????????????????????????????????? | | ?????????????????????????????????????????????????? | | ?????????????????????????????????????????????????? | | ?????????????????????????????????????????????????? | | ?????????????????????????????????????????????????? | | ?????????????????????????????????????????????????? | | ?????????????????????????????????????????????????? | | ?????????????????????????????????????????????????? | | ?????????????????????????????????????????????????? | | ?????????????????????????????????????????????????? | | ?????????????????????????????????????????????????? | | ?????????????????????????????????????????????????? | | ?????????????????????????????????????????????????? | | ?????????????????????????????????????????????????? | | ????????????????????????????? ?????????????#??? | | ????????????????????????????# "?? ##### ??? | | ????????????????????????????# "?" # [ ??? | | ????????????????????????????# ?" # ??? | | ????????????????????????????# """ # ??? | | ????????????????????????????# """ # """? | | ????????????????????????????# """ # """? | | ????????????????????????????# " # ""?? | | ????????????????????????????# ^ # ?? | | ????????????????????????????# # =[ # | | ??????????????????########### # [ # | | ??????????????????# Y @Y # # # | | ??????????????????# """ """ # # # | | ??????????????????# """ """ # ###/##### | | ??????????????????#g"""g""" # | | ??????????????????# + | | ??????????????????# [ # | | ??????????????????# r # ###### ###+##### | | ??????????????????# = #/############ | | ??????????????????########### ## """ | | ????????????????????????????# ## """ | | ????????????????????????????# ## """ | | ????????????????????????????# ## | | ????????????????????????????# ! "Y" ##"" ** | | ????????????????????????????# ! """ #"T ** | | ????????????????????????????# ![ ##"" | | ????????????????????????????######+####### | | ???????????????????????????? #????######### | | ???????????????????????????? #????????????? | | ???????????????????????????? #??????####### | | ????????????????????????????#+### ######## | | ???????????????????????????? ## + | | ???????????????????????????? ## # | | ???????????????????????????? ## # | | ???????????????????????????? ## + | | ???????????????????????????? ## ##### | +----------------------------------------------------+ Best States ------------- Heat Dissipation 35 Energy Generation 10 Energy Capacity 250 Matter Stores 300 Matter Capacity 300 Sight Range 16 Terrain Scan Density 10 Evasion (%) 55 Item Schematics ----------------- None Robot Schematics ------------------ None Fabricated ------------ Nothing Alien Tech Used ----------------- None Achievements -------------- None Challenges ------------ None Game ------ Seed AluminumStorageAxe Manual? 0 Play Time 00:23:00 Cumulative 15.9 hours Start 2024.04.14 @ 00:35:12 End 2024.04.14 @ 01:13:17 Sessions 5 Manual Loads 0 Difficulty Rogue Special Mode None Game No. 13 Rogue 7 Adventurer 6 Explorer 0 Win Type - Total 0 Types 0/0/0/0/0/0/0/0/0 Lore% 18 Gallery% 23 Achievement% 24 Wizard Run 0 Options --------- Layout 0 ASCII 0 Keyboard 0 Movement Mouse Keybinds 0 Fullscreen 2 Font 36/Smallcaps Map View 76x50 Zoom Use 0% Tactical HUD 1 Map Filters NONE Filters NONE Steam 1 RUN: 2d38c2a6-510f-482e-9604-38e86bb1929e